bitfinex-derivatives/quotes_ETHF0:USTF0_20250528
["timestamp","ask_amount","ask_price","bid_price","bid_amount"]
[1748416253248,3.55301486,2636.1,2636.0,1.3826899]
[1748416253954,3.55301486,2636.1,2636.0,2.1410399]
[1748416254252,3.55301486,2636.1,2636.0,2.7832399]
[1748416256457,0.07339423,2636.1,2636.0,2.7832399]
[1748416257151,0.83171423,2636.1,2636.0,2.0248899]
[1748416257351,2.18090707,2636.1,2636.0,2.0248899]
[1748416257552,2.18092405,2636.1,2636.0,1.3826899]
[1748416258351,2.18092405,2636.1,2636.0,2.1410399]
[1748416258655,2.18092405,2636.1,2636.0,1.3826899]
[1748416259458,2.18092405,2636.1,2636.0,2.1410399]
[1748416259659,1.42260405,2636.1,2636.0,2.7789399]
[1748416260856,2.18092405,2636.1,2636.0,2.7789399]
[1748416261063,1.42260405,2636.1,2636.0,2.7789399]
[1748416261451,2.35553292,2636.1,2636.0,2.7789399]
[1748416261648,2.18092405,2636.1,2636.0,2.7789399]
[1748416261861,2.35554855,2636.1,2636.0,2.7789399]
[1748416262059,1.59762139,2636.1,2636.0,2.7789399]
[1748416262362,2.18131619,2636.1,2636.0,2.0205899]
[1748416262557,2.35594034,2636.1,2636.0,0.0056899]
[1748416262757,0.75835,2636.0,2635.9,2.8341899]
[1748416262958,4.07735196,2636.0,2635.9,3.5925699]
[1748416263159,4.07735196,2636.0,2635.9,0.75838]
[1748416264262,4.07735196,2636.0,2635.8,2.01209]
[1748416264563,0.75838,2635.9,2635.8,2.01209]
[1748416264860,3.40326714,2635.9,2635.8,2.01209]
[1748416265261,1.34988714,2635.9,2635.8,5.21989]
[1748416266262,0.83173423,2636.1,2635.9,0.75838]
[1748416266463,0.83173423,2636.1,2636.0,1.3009]
[1748416266665,1.59812268,2636.1,2636.0,2.73715]
[1748416267166,1.59811798,2636.1,2636.0,2.73715]
[1748416267460,1.59811895,2636.1,2636.0,2.73715]
[1748416267658,2.3564555,2636.1,2636.0,1.9788]
[1748416267964,2.3564555,2636.1,2636.0,2.73715]
[1748416268265,1.59813136,2636.1,2636.0,2.73715]
[1748416268765,1.5981541,2636.1,2636.0,2.73715]
[1748416269366,1.42343722,2636.1,2636.0,2.73715]
[1748416270066,1.59816613,2636.1,2636.0,2.73715]
[1748416270468,0.24812314,2636.1,2636.0,2.73715]
[1748416270764,0.07339423,2636.1,2636.0,2.73715]
[1748416271671,0.00565169,2636.5,2636.4,0.75823]
[1748416271868,1.53028075,2636.5,2636.4,3.96603]
[1748416272063,0.00565169,2636.5,2636.4,3.96603]
[1748416272268,0.00565169,2636.5,2636.4,23.30883]
[1748416272464,0.00565169,2636.5,2636.4,27.02883]
[1748416274171,0.00565169,2636.5,2636.4,9.64283]
[1748416274974,0.00565169,2636.5,2636.4,8.8846]
[1748416275173,0.75829,2636.2,2636.1,4.4068]
[1748416275470,0.75829,2636.2,2636.1,0.6868]
[1748416275676,0.75832,2636.1,2636.0,2.0007]
[1748416275865,2.00012,2636.1,2636.0,2.0007]
[1748416276671,2.07351423,2636.1,2636.0,2.0007]
[1748416277469,0.07339423,2636.1,2636.0,2.75905]
[1748416279671,0.07339423,2636.1,2636.0,5.96685]
[1748416289190,0.83171423,2636.1,2636.0,3.96615]
[1748416289386,0.07339423,2636.1,2636.0,3.96615]
[1748416289589,0.74069423,2636.1,2636.0,3.96615]
[1748416289790,2.06389423,2636.1,2636.0,3.96615]
[1748416291085,0.07339423,2636.1,2636.0,3.96615]
[1748416297192,1.31599423,2636.1,2636.0,3.96615]
[1748416301395,0.07339423,2636.1,2636.0,3.96615]
[1748416304496,1.41539423,2636.1,2636.0,3.96615]
[1748416305102,2.17371423,2636.1,2636.0,3.2078]
[1748416305307,2.17371423,2636.1,2636.0,3.96615]
[1748416306004,1.41539423,2636.1,2636.0,3.96615]
[1748416307601,0.07339423,2636.1,2636.0,3.96615]
[1748416307805,0.07339423,2636.1,2636.0,5.27655]
[1748416309300,0.6534,2636.4,2636.0,5.27655]
[1748416309301,0.00565169,2636.5,2636.0,10.27655]
[1748416309504,0.75808,2637.0,2636.4,3.2078]
[1748416309698,3.55776216,2636.9,2636.5,4.9997]
[1748416309899,0.75815,2636.7,2636.5,0.75819]
[1748416310208,2.01083,2636.8,2636.6,4.47717]
[1748416310510,0.75816,2636.7,2636.5,17.382]
[1748416310703,0.6233,2636.9,2636.5,18.14019]
[1748416311004,0.75815,2636.7,2636.5,17.382]
[1748416311205,0.6233,2636.9,2636.3,21.101]
[1748416311409,0.75818,2636.6,2636.3,25.06703]
[1748416311710,1.34343375,2636.5,2636.4,0.75823]
[1748416312210,1.34343375,2636.5,2636.4,2.01353]
[1748416313307,1.34150544,2636.5,2636.4,2.01353]
[1748416313708,2.00910544,2636.5,2636.4,2.01353]
[1748416314010,2.18380718,2636.5,2636.3,3.719]
[1748416314210,1.34150544,2636.4,2636.3,4.47725]
[1748416314409,1.42582,2636.5,2636.3,4.47725]
[1748416314605,1.34152761,2636.4,2636.2,1.2807]
[1748416314805,0.75825,2636.4,2636.2,0.75829]
[1748416315010,1.34158037,2636.3,2636.2,0.75829]
[1748416315510,1.51629047,2636.3,2635.8,0.6825]
[1748416315811,0.75835,2636.0,2635.9,0.75837]
[1748416316012,0.75835,2636.0,2635.8,2.0253]
[1748416316205,0.6698,2635.9,2635.8,2.0253]
[1748416320316,1.42818,2635.9,2635.8,1.2669]
[1748416320613,0.6698,2635.9,2635.8,0.75841]
[1748416320808,0.6698,2635.9,2635.8,2.70511]
[1748416326212,0.74319423,2635.9,2635.8,2.70511]
[1748416326407,0.74319423,2635.9,2635.8,0.75841]
[1748416327015,0.74319423,2635.9,2635.8,2.08041]
[1748416327517,0.74319423,2635.9,2635.8,2.75221]
[1748416328218,0.74319423,2635.9,2635.8,0.75841]
[1748416329222,0.74319423,2635.9,2635.8,0.75841]
[1748416329415,2.08569423,2635.9,2635.8,2.02101]
[1748416329914,2.75609423,2635.9,2635.8,2.02101]
[1748416333817,0.06201443,2635.9,2635.8,2.02101]
[1748416334127,0.06201443,2635.9,2635.8,2.66291]
[1748416334618,0.06201443,2635.9,2635.8,1.9045]
[1748416334924,0.06201443,2635.9,2635.8,18.14141]
[1748416335125,0.06201443,2635.9,2635.8,19.41651]
[1748416347340,0.06201443,2635.9,2635.8,23.13351]
[1748416350531,0.06201443,2635.9,2635.8,5.75151]
[1748416350724,0.06201443,2635.9,2635.8,23.13351]
[1748416350926,1.33681443,2635.9,2635.8,23.13351]
[1748416352427,0.06201443,2635.9,2635.8,23.13351]
[1748416354638,0.06201443,2635.9,2635.8,23.13251]
[1748416354846,0.06201443,2635.9,2635.8,4.47641]
[1748416355038,1.34951443,2635.9,2635.8,21.85741]
[1748416356938,1.34951443,2635.9,2635.8,18.13941]
[1748416358737,1.34951443,2635.9,2635.8,0.75841]
[1748416358941,1.34951443,2635.9,2635.8,18.13941]
[1748416359334,1.34951443,2635.9,2635.8,0.75841]
[1748416359544,0.75841,2635.8,2635.7,3.2134899]
[1748416359742,2.27661652,2635.8,2635.7,0.0056899]
[1748416359942,3.61151652,2635.8,2635.7,0.0056899]
[1748416360744,3.6116411,2635.8,2635.7,0.0056899]
[1748416360945,3.61153807,2635.8,2635.7,0.0056899]
[1748416361539,3.6114503,2635.8,2635.7,0.0056899]
[1748416362140,3.43643036,2635.8,2635.7,0.0056899]
[1748416362355,3.61144948,2635.8,2635.7,0.0056899]
[1748416362539,3.61139904,2635.8,2635.7,0.0056899]
[1748416362848,3.61139832,2635.8,2635.7,0.0056899]
[1748416363039,3.61139837,2635.8,2635.7,0.0056899]
[1748416363344,8.61139837,2635.8,2635.7,0.0056899]
[1748416363748,8.61139227,2635.8,2635.7,0.0056899]
[1748416364251,8.61139041,2635.8,2635.7,0.0056899]
[1748416364440,8.43643036,2635.8,2635.7,0.0056899]
[1748416364640,8.61134439,2635.8,2635.7,0.0056899]
[1748416364945,8.60877737,2635.8,2635.7,0.0056899]
[1748416365347,3.60874088,2635.8,2635.7,0.0056899]
[1748416366039,3.60874402,2635.8,2635.7,0.0056899]
[1748416366244,3.60870591,2635.8,2635.7,0.0056899]
[1748416366738,3.43386334,2635.8,2635.7,0.0056899]
[1748416366943,3.60870724,2635.8,2635.7,0.0056899]
[1748416367140,3.60870859,2635.8,2635.7,0.0056899]
[1748416367337,3.43386334,2635.8,2635.7,0.0056899]
[1748416367536,3.60867191,2635.8,2635.7,0.0056899]
[1748416367740,3.60866541,2635.8,2635.7,0.0056899]
[1748416368147,3.60866879,2635.8,2635.7,0.0056899]
[1748416368546,3.60863575,2635.8,2635.7,0.0056899]
[1748416368952,3.60775164,2635.8,2635.7,0.0056899]
[1748416369247,3.43297923,2635.8,2635.7,0.0056899]
[1748416369447,3.60774775,2635.8,2635.7,0.0056899]
[1748416370143,6.81554775,2635.8,2635.7,0.0056899]
[1748416370347,0.75852,2635.4,2635.3,1.3256]
[1748416371952,5.10472,2634.6,2633.3,1.3087]
[1748416372243,3.96679,2633.8,2633.5,0.75905]
[1748416372444,3.2078,2633.8,2633.6,0.75902]
[1748416373040,3.2078,2633.8,2633.4,17.81994771]
[1748416373241,3.2078,2633.8,2633.6,0.75902]
[1748416373551,3.2078,2633.8,2633.4,17.81994771]
[1748416373552,3.2078,2633.8,2633.7,3.718]
[1748416374152,3.2078,2633.8,2633.7,21.227]
[1748416375248,3.2078,2633.8,2633.7,3.718]
[1748416375548,3.96678,2633.8,2633.7,21.225]
[1748416375753,4.5249,2633.8,2633.7,3.718]
[1748416376153,5.28388,2633.8,2633.7,3.718]
[1748416376353,4.5249,2633.8,2633.7,3.718]
[1748416376648,0.0056899,2634.0,2633.9,0.75895]
[1748416377559,0.0056899,2634.0,2633.9,2.04845]
[1748416377853,0.0056899,2634.0,2633.8,2.08538]
[1748416378046,1.2942899,2634.0,2633.8,2.6159]
[1748416378246,2.0532199,2634.0,2633.8,2.6159]
[1748416379449,2.0532199,2634.0,2633.8,3.37486]
[1748416379450,1.2942899,2634.0,2633.8,3.37486]
[1748416380556,1.2942899,2634.0,2633.9,0.75895]
[1748416380757,1.2942899,2634.0,2633.9,2.10545]
[1748416381057,1.2942899,2634.0,2633.9,1.3465]
[1748416382257,2.0532099,2634.0,2633.9,1.3465]
[1748416386157,2.12660413,2634.0,2633.9,1.3465]
[1748416387264,5.33440413,2634.0,2633.9,1.3465]
[1748416389662,0.75895,2633.9,2633.8,5.0454]
[1748416389962,3.39795,2633.9,2633.8,3.719]
[1748416390156,0.75904,2633.6,2633.5,2.6338]
[1748416390463,0.75904,2633.6,2633.5,1.3132]
[1748416390464,3.96684,2633.6,2633.5,1.3132]
[1748416392868,3.96684,2633.6,2633.5,2.577]
[1748416397471,0.75907,2633.5,2633.4,3.7856899]
[1748416397665,2.09137978,2633.5,2633.4,3.7856899]
[1748416398170,2.77927978,2633.5,2633.4,3.7856899]
[1748416399073,2.77927978,2633.5,2633.4,5.7003899]
[1748416403574,2.77927978,2633.5,2633.4,6.4594899]
[1748416403871,2.09137978,2633.5,2633.4,7.0963899]
[1748416404071,1.3369,2633.5,2633.4,7.0963899]
[1748416404974,2.09597,2633.5,2633.4,7.0963899]
[1748416405372,2.09597,2633.5,2633.4,6.3372899]
[1748416405775,4.04025423,2633.6,2633.4,7.0963699]
[1748416406075,4.04025423,2633.6,2633.5,2.00467]
[1748416406275,5.38382469,2633.6,2633.5,2.00467]
[1748416406573,0.07339423,2633.6,2633.5,2.00467]
[1748416406765,3.2078,2633.9,2633.8,0.75898]
[1748416407074,3.2078,2633.9,2633.8,4.53998]
[1748416407481,0.0056899,2634.0,2633.9,0.75895]
[1748416407774,0.0056899,2634.0,2633.9,3.45715]
[1748416408567,0.0056899,2634.0,2633.9,8.45715]
[1748416408776,3.2078,2634.7,2633.9,10.906]
[1748416408968,2.09421508,2634.6,2634.0,1.3412]
[1748416409170,0.75875,2634.6,2634.3,0.75883]
[1748416409372,0.75875,2634.6,2634.4,6.4744]
[1748416409373,0.75878,2634.5,2634.4,6.4744]
[1748416410675,2.10378,2634.5,2634.4,6.4744]
[1748416411171,0.75876,2634.6,2634.4,6.4744]
[1748416411373,0.75876,2634.6,2634.5,1.3517]
[1748416411576,0.75875,2634.6,2634.5,1.3517]
[1748416414478,0.07339423,2634.6,2634.5,1.3517]
[1748416414776,0.83214423,2634.6,2634.5,1.3517]
[1748416414975,0.83214423,2634.6,2634.2,21.167]
[1748416414976,0.75884,2634.3,2634.2,21.167]
[1748416415182,0.75889,2634.1,2634.0,2.6473]
[1748416415374,0.75888,2634.2,2634.0,2.03531]
[1748416415573,1.3308,2634.4,2634.0,2.6473]
[1748416415780,1.3308,2634.4,2634.2,0.75885]
[1748416415976,1.3308,2634.4,2634.3,1.2775]
[1748416416285,2.08961,2634.4,2634.3,1.2775]
[1748416417977,1.3308,2634.4,2634.3,1.2775]
[1748416418886,2.08961,2634.4,2634.3,1.2775]
[1748416419787,0.75889,2634.1,2634.0,1.2764]
[1748416419984,0.75888,2634.2,2634.0,22.56641]
[1748416420378,2.01808,2634.2,2634.0,22.56641]
[1748416420584,2.01808,2634.2,2634.0,23.87151]
[1748416420788,1.2592,2634.2,2634.0,23.87151]
[1748416420989,3.2078,2634.4,2634.0,23.1126]
[1748416421187,1.2592,2634.5,2634.1,1.3051]
[1748416421387,2.018,2634.5,2634.2,0.75884]
[1748416421789,1.2592,2634.4,2634.3,17.42]
[1748416422086,2.01801,2634.4,2634.3,17.42]
[1748416422395,1.2592,2634.4,2634.3,18.17884]
[1748416423688,0.83215423,2634.6,2634.4,0.75879]
[1748416423888,2.14585423,2634.6,2634.4,7.03989]
[1748416424387,1.3137,2634.5,2634.4,7.03989]
[1748416425490,0.07339423,2634.6,2634.5,0.75878]
[1748416425690,0.83214423,2634.6,2634.5,1.3239]
[1748416425984,2.11784423,2634.6,2634.5,1.3239]
[1748416426185,2.11784423,2634.6,2634.4,5.7496]
[1748416426386,2.04448,2634.5,2634.4,1.2518]
[1748416426686,1.2857,2634.5,2634.4,22.3998]
[1748416427077,1.2857,2634.5,2634.4,23.7237]
[1748416427277,1.2857,2634.5,2634.4,24.48251]
[1748416428486,0.07339423,2634.6,2634.5,0.75878]
[1748416428689,0.07339423,2634.6,2634.5,2.10718]
[1748416429895,0.83214423,2634.6,2634.5,1.3484]
[1748416430286,2.20054423,2634.6,2634.5,1.3484]
[1748416430683,0.75878,2634.5,2634.4,1.2518]
[1748416430890,2.12718,2634.5,2634.4,22.3898]
[1748416431595,2.12718,2634.5,2634.4,22.3878]
[1748416431798,2.12718,2634.5,2634.4,1.2518]
[1748416432092,2.12718,2634.5,2634.4,21.136]
[1748416434397,5.33498,2634.5,2634.4,21.136]
[1748416434691,5.33498,2634.5,2634.4,20.7567]
[1748416436299,6.67162888,2634.5,2634.4,20.7567]
[1748416436693,6.67162656,2634.5,2634.4,20.7567]
[1748416436889,6.67162805,2634.5,2634.4,20.7567]
[1748416437100,6.84678101,2634.5,2634.4,20.7567]
[1748416437301,6.84678101,2634.5,2634.4,3.3597]
[1748416437493,6.84678101,2634.5,2634.4,20.7557]
[1748416437690,0.75881,2634.4,2634.3,3.739]
[1748416437894,3.38135805,2634.4,2634.3,21.135]
[1748416440801,2.62254805,2634.4,2634.3,21.89384]
[1748416441001,0.07339423,2634.6,2634.5,0.75878]
[1748416441196,3.68045804,2634.6,2634.4,2.01359]
[1748416441397,1.33713884,2634.5,2634.4,2.01359]
[1748416442197,1.33713884,2634.5,2634.4,19.40959]
[1748416442603,2.67313884,2634.5,2634.4,19.40959]
[1748416444294,3.43191884,2634.5,2634.4,19.40959]
[1748416444501,2.09478,2634.5,2634.4,19.40959]
[1748416444699,2.09478,2634.5,2634.3,1.42162]
[1748416445008,2.04411,2634.4,2634.3,0.6628]
[1748416445303,2.04411,2634.4,2634.3,21.7808]
[1748416445906,1.2853,2634.4,2634.3,22.53964]
[1748416446203,2.04411,2634.4,2634.3,21.118]
[1748416446399,0.75884,2634.3,2634.2,0.6713]
[1748416446596,2.71334,2634.3,2634.2,21.7893]
[1748416447300,1.9545,2634.3,2634.2,21.7893]
[1748416447501,2.71334,2634.3,2634.2,21.7893]
[1748416447898,2.71334,2634.3,2634.2,4.3933]
[1748416448298,2.71334,2634.3,2634.2,21.7893]
[1748416448997,2.71334,2634.3,2634.2,4.3933]
[1748416449301,2.71334,2634.3,2634.1,2.04928]
[1748416449595,1.38124,2634.3,2634.1,2.04928]
[1748416449997,1.38125,2634.3,2634.2,21.117]
[1748416450194,1.38125,2634.3,2634.2,21.118]
[1748416450894,1.38125,2634.3,2634.1,0.75889]
[1748416451097,0.75887,2634.2,2634.1,0.75889]
[1748416451404,3.96667,2634.2,2634.1,21.118]
[1748416451604,4.64487,2634.2,2634.1,21.118]
[1748416451795,0.75889,2634.1,2634.0,3.43182]
[1748416451996,0.75889,2634.1,2634.0,24.54982]
[1748416452200,0.75889,2634.1,2634.0,22.54222]
[1748416452498,4.64489,2634.2,2634.0,22.54222]
[1748416454005,4.64489,2634.2,2634.0,4.3873]
[1748416454006,0.75889,2634.1,2634.0,4.3873]
[1748416454200,0.75889,2634.1,2634.0,21.7833]
[1748416455000,0.75889,2634.1,2633.4,41.9886899]
[1748416455001,0.75907,2633.5,2633.4,41.9886899]
[1748416455202,0.75905,2633.6,2633.4,59.3846899]
[1748416455506,3.2078,2633.7,2633.4,59.3846899]
[1748416455507,3.96683,2633.7,2633.5,2.11257]
[1748416455804,3.96683,2633.7,2633.5,1.3535]
[1748416456899,3.96683,2633.7,2633.5,2.11257]
[1748416458007,1.44318,2633.8,2633.6,0.75902]
[1748416458203,1.44318,2633.8,2633.6,2.11252]
[1748416458405,1.44318,2633.8,2633.7,0.682]
[1748416462807,1.44318,2633.8,2633.7,17.398]
[1748416466909,1.44318,2633.8,2633.7,18.15701]
[1748416467104,1.44318,2633.8,2633.7,17.398]
[1748416467708,2.78648,2633.8,2633.7,17.398]
[1748416469413,2.78648,2633.8,2633.7,18.15701]
[1748416469615,1.3433,2633.8,2633.7,17.398]
[1748416469813,1.3433,2633.8,2633.7,18.15701]
[1748416470008,2.10228,2633.8,2633.7,18.15701]
[1748416470608,2.10228,2633.8,2633.7,17.398]
[1748416471508,0.75896,2633.9,2633.8,0.75896]
[1748416471716,3.2078,2634.0,2633.9,0.75895]
[1748416472105,3.2078,2634.0,2633.9,2.04085]
[1748416472313,0.75881,2634.4,2634.2,0.75884]
[1748416472509,1.2692,2634.5,2634.2,0.75884]
[1748416472510,1.2692,2634.5,2634.3,19.9366]
[1748416472713,1.2692,2634.5,2634.4,1.2819]
[1748416473518,2.02798,2634.5,2634.4,1.2819]
[1748416473912,0.75878,2634.5,2634.4,1.2819]
[1748416474816,0.75877,2634.6,2634.4,2.04071]
[1748416475121,0.0056899,2634.7,2634.3,18.6547]
[1748416475122,0.7644299,2634.7,2634.5,2.04278]
[1748416475311,0.7644299,2634.7,2634.6,1.284]
[1748416475510,0.7644299,2634.7,2634.6,5.005]
[1748416481821,0.7644299,2634.7,2634.6,22.4]
[1748416484534,0.7644299,2634.7,2634.6,1.284]
[1748416484735,0.7644299,2634.7,2634.6,22.399]
[1748416485534,0.7644299,2634.7,2634.6,21.115]
[1748416486135,0.7644299,2634.7,2634.4,2.0697]
[1748416486136,0.0056899,2634.7,2634.4,2.0697]
[1748416486329,1.3711,2634.6,2634.5,22.395]
[1748416486733,2.12985,2634.6,2634.5,22.395]
[1748416487336,2.12985,2634.6,2634.5,1.281]
[1748416487538,5.33765,2634.6,2634.5,21.114]
[1748416487829,0.75881,2634.4,2634.3,1.2557]
[1748416488034,0.75881,2634.4,2634.3,22.3697]
[1748416488533,2.12991,2634.4,2634.3,22.3697]
[1748416488935,2.12991,2634.4,2634.3,23.6507]
[1748416489137,3.2078,2634.6,2634.3,23.6507]
[1748416489337,3.96657,2634.6,2634.4,2.1035]
[1748416489635,4.03996423,2634.6,2634.5,1.3447]
[1748416493043,0.75881,2634.5,2634.3,2.01452]
[1748416493244,0.75881,2634.5,2634.4,21.113]
[1748416493444,2.02901,2634.5,2634.4,21.113]
[1748416493640,0.75889,2634.1,2634.0,3.721]
[1748416493853,0.75892,2634.0,2633.9,3.721]
[1748416494143,3.38452,2634.0,2633.9,21.119]
[1748416495941,2.6256,2634.0,2633.9,21.119]
[1748416496842,2.6256,2634.0,2633.9,21.87795]
[1748416502546,3.2078,2634.4,2633.9,21.119]
[1748416502848,4.5215,2634.4,2634.3,0.75884]
[1748416503044,5.85688759,2634.4,2634.3,4.47984]
[1748416503546,0.07339423,2634.6,2634.5,0.75878]
[1748416504051,1.38709423,2634.6,2634.5,0.75878]
[1748416504442,1.38709423,2634.6,2634.5,2.01318]
[1748416504644,1.3137,2634.6,2634.5,2.01318]
[1748416504950,2.07245,2634.6,2634.5,2.01318]
[1748416505151,2.07245,2634.6,2634.5,1.2544]
[1748416505353,2.07245,2634.6,2634.4,0.6733]
[1748416505554,1.2648,2634.5,2634.4,1.4321]
[1748416506846,1.2648,2634.5,2634.4,22.5461]
[1748416507350,3.9722199,2634.7,2634.5,0.75876]
[1748416507559,0.0056899,2634.7,2634.6,0.75875]
[1748416507850,0.0056899,2634.7,2634.6,2.11545]
[1748416509253,3.9722099,2634.7,2634.6,1.3567]
[1748416509453,2.0096099,2634.7,2634.6,1.3567]
[1748416509847,3.34488668,2634.7,2634.6,1.3567]
[1748416510150,2.0096099,2634.7,2634.6,1.3567]
[1748416510351,6.55269797,2634.7,2634.6,1.3567]
[1748416510954,6.72702041,2634.7,2634.6,1.3567]
[1748416511153,6.72702112,2634.7,2634.6,1.3567]
[1748416511855,6.7270246,2634.7,2634.6,1.3567]
[1748416512258,6.72702049,2634.7,2634.6,2.11545]
[1748416512655,6.55269797,2634.7,2634.6,1.3567]
[1748416512855,6.72702642,2634.7,2634.6,1.3567]
[1748416513056,3.51922642,2634.7,2634.6,1.3567]
[1748416513556,3.51922857,2634.7,2634.6,1.3567]
[1748416513750,3.5192286,2634.7,2634.6,1.3567]
[1748416513953,3.51923552,2634.7,2634.6,17.392]
[1748416514151,3.51923068,2634.7,2634.6,17.392]
[1748416515157,0.75878,2634.5,2634.4,5.15211]
[1748416515357,0.75878,2634.5,2634.4,22.54411]
[1748416515652,1.89702,2634.4,2634.0,3.72]
[1748416515861,0.75889,2634.1,2634.0,3.72]
[1748416516154,0.75889,2634.1,2634.0,21.112]
[1748416516355,3.33759049,2634.1,2634.0,21.87092]
[1748416517256,3.33744711,2634.1,2634.0,21.112]
[1748416518656,2.00199,2634.1,2634.0,21.112]
[1748416519054,2.00199,2634.1,2634.0,3.72]
[1748416519260,0.75895,2633.9,2633.8,17.392]
[1748416519559,0.75898,2633.8,2633.7,5.1085]
[1748416519759,0.6431,2633.8,2633.7,22.5005]
[1748416520158,2.0,2633.8,2633.7,22.5005]
[1748416520954,2.0,2633.8,2633.6,24.3198]
[1748416521151,1.3569,2633.7,2633.6,26.96704]
[1748416521961,1.3569,2633.7,2633.6,23.75924]
[1748416524263,1.3569,2633.7,2633.6,6.36724]
[1748416524461,1.3569,2633.7,2633.6,23.76024]
[1748416525665,2.11591,2633.7,2633.6,4.3517]
[1748416525856,1.3569,2633.7,2633.6,21.87204]
[1748416526456,2.11591,2633.7,2633.6,3.72]
[1748416528162,0.75906,2633.6,2633.4,60.1397699]
[1748416528467,2.10256,2633.6,2633.4,60.1397699]
[1748416528765,1.3435,2633.6,2633.5,0.75907]
[1748416528959,0.75903,2633.7,2633.5,0.75907]
[1748416532268,0.75901,2633.7,2633.5,0.75907]
[1748416532870,0.75905,2633.6,2633.4,62.1930599]
[1748416533166,0.75905,2633.6,2633.4,62.8133599]
[1748416533674,0.75905,2633.6,2633.5,17.394]
[1748416533966,0.75907,2633.5,2633.4,6.3992899]
[1748416534170,0.75907,2633.5,2633.4,22.4182899]
[1748416534372,0.75907,2633.5,2633.4,3.7256899]
[1748416534570,0.75907,2633.5,2633.4,21.1196899]
[1748416536970,3.2078,2633.6,2633.5,0.75907]
[1748416537164,0.83240423,2633.7,2633.4,21.1196899]
[1748416537368,0.83240423,2633.7,2633.6,0.75904]
[1748416539170,0.75904,2633.6,2633.5,2.04565]
[1748416540075,3.96684,2633.6,2633.5,2.04565]
[1748416541877,3.96684,2633.6,2633.5,1.2866]
[1748416543576,0.75904,2633.6,2633.5,1.2866]
[1748416543782,3.28119423,2633.7,2633.6,0.75904]
[1748416544877,4.04020423,2633.7,2633.5,1.2866]
[1748416545477,4.04020423,2633.7,2633.6,21.115]
[1748416545669,3.28119423,2633.7,2633.6,21.87404]
[1748416546478,4.04020423,2633.7,2633.6,3.72]
[1748416546678,4.04020423,2633.7,2633.6,21.114]
[1748416546979,4.04020423,2633.7,2633.6,22.4852]
[1748416547674,4.04020423,2633.7,2633.6,1.3712]
[1748416547880,4.04020423,2633.7,2633.6,21.114]
[1748416549276,0.83240423,2633.7,2633.6,21.114]
[1748416549881,0.83240423,2633.7,2633.6,17.394]
[1748416550079,0.07339423,2633.7,2633.5,21.87205]
[1748416550379,1.9543,2633.6,2633.5,21.87205]
[1748416551976,2.71334,2633.6,2633.5,21.113]
[1748416552382,1.9543,2633.6,2633.5,21.87207]
[1748416554595,1.9543,2633.6,2633.5,4.47807]
[1748416555396,0.07339423,2633.7,2633.6,0.75904]
[1748416555585,0.07339423,2633.7,2633.6,2.07714]
[1748416564999,0.07339423,2633.7,2633.6,19.46814]
[1748416566099,0.07339423,2633.7,2633.6,22.67594]
[1748416570298,0.07339423,2633.7,2633.6,5.28494]
[1748416570499,0.07339423,2633.7,2633.6,19.46714]
[1748416580721,0.07339423,2633.7,2633.6,22.67494]
[1748416597027,4.23e-06,2633.7,2633.6,28.35144]
[1748416597230,3.2078,2634.6,2634.5,0.75878]
[1748416597422,5.7848,2634.6,2634.5,0.75878]
[1748416603531,5.1594,2634.6,2634.5,0.75878]
[1748416603732,1.2735,2634.6,2634.5,6.64018]
[1748416604638,1.3004,2635.1,2634.6,0.75875]
[1748416604838,1.2573,2635.0,2634.6,2.02215]
[1748416609436,1.2573,2635.0,2634.6,7.02215]
[1748416609743,0.6728,2635.5,2635.4,0.75852]
[1748416609939,0.6728,2635.5,2635.4,4.47152]
[1748416611036,0.6927899,2635.7,2635.6,0.75846]
[1748416611237,0.0056899,2635.7,2635.6,0.75846]
[1748416611938,0.0056899,2635.7,2635.6,1.44536]
[1748416612835,0.0056899,2635.7,2635.6,1.82492204]
[1748416615740,9.9e-06,2635.7,2635.6,1.82492204]
[1748416616329,9.9e-06,2635.7,2635.6,6.82492204]
[1748416617143,0.6871,2636.2,2636.1,0.75832]
[1748416617343,0.6871,2636.2,2636.1,25.05112]
[1748416619446,0.0056899,2636.4,2636.3,0.75826]
[1748416622340,0.0056899,2636.4,2636.3,21.83826]
[1748416624439,0.07908413,2636.4,2636.3,21.83826]
[1748416627745,0.07908413,2636.4,2636.3,0.75826]
[1748416628046,0.07908413,2636.4,2636.3,21.83326]
[1748416632556,0.07908413,2636.4,2636.3,22.47056]
[1748416635257,0.07908413,2636.4,2636.3,1.39556]
[1748416635453,0.07908413,2636.4,2636.3,21.82826]
[1748416635652,0.08371921,2636.4,2636.3,21.82826]
[1748416636151,0.08371921,2636.4,2636.3,0.75826]
[1748416636350,0.08371921,2636.4,2636.3,21.82726]
[1748416637353,0.08371921,2636.4,2636.3,4.46626]
[1748416637555,0.08371921,2636.4,2636.3,21.82726]
[1748416639156,0.08371921,2636.4,2636.3,22.50736]
[1748416643265,0.08371921,2636.4,2636.3,1.43836]
[1748416643465,0.08371921,2636.4,2636.3,22.50436]
[1748416644964,0.08371921,2636.4,2636.3,1.43836]
[1748416645165,0.08371921,2636.4,2636.3,22.50436]
[1748416650974,0.08371921,2636.4,2636.3,22.50236]
[1748416652167,0.08371921,2636.4,2636.3,4.46526]
[1748416652478,0.08371921,2636.4,2636.3,21.82226]
[1748416655977,0.08371921,2636.4,2636.3,0.75826]
[1748416656278,5.08371921,2636.4,2636.3,21.82226]
[1748416656475,0.08371921,2636.4,2636.3,21.82226]
[1748416656675,2.74591921,2636.4,2636.3,21.82226]
[1748416657980,2.74591921,2636.4,2636.3,0.75826]
[1748416658278,2.74591921,2636.4,2636.3,21.82226]
[1748416669281,2.74591921,2636.4,2636.3,0.75826]
[1748416669591,2.74591921,2636.4,2636.3,21.81826]
[1748416675891,2.74591921,2636.4,2636.3,0.75826]
[1748416676188,2.74591921,2636.4,2636.3,21.058]